[Event "The Kvibergspelen 2024"]
[Site "Kviberg Park Hotel & Conference, Krutvagen 2, Gothenburg, Sweden"]
[Date "2024.09.08"]
[Round "8.15"]
[White "Krilovs, Nikolajs"]
[Black "Dingertz, Filip"]
[Result "1/2-1/2"]
[TimeControl "15 minutes + 5 seconds per move from move one (Round 1 - 4) / 90 minutes + 30 seconds per move from move one (Round 5 - 8)"]
[WhiteFideId "11603100"]
[BlackFideId "1757288"]
[WhiteElo "2054"]
[BlackElo "1858"]

1. e4 {[%clk 01:30:57]} {[%emt 00:00:03]} e5 {[%clk 01:30:54]} {[%emt
00:00:05]} 2. Nf3 {[%clk 01:31:20]} {[%emt 00:00:07]} Nc6 {[%clk 01:31:21]}
{[%emt 00:00:04]} 3. Bc4 {[%clk 01:31:07]} {[%emt 00:00:43]} Bc5 {[%clk
01:31:43]} {[%emt 00:00:07]} 4. b4 {[%clk 01:26:39]} {[%emt 00:04:57]} Bxb4
{[%clk 01:31:22]} {[%emt 00:00:52]} 5. c3 {[%clk 01:27:03]} {[%emt 00:00:05]}
Be7 {[%clk 01:31:48]} {[%emt 00:00:05]} 6. d4 {[%clk 01:27:03]} {[%emt
00:00:30]} Na5 {[%clk 01:32:13]} {[%emt 00:00:05]} 7. Nxe5 {[%clk 01:22:57]}
{[%emt 00:04:35]} Nxc4 {[%clk 01:32:09]} {[%emt 00:00:36]} 8. Nxc4 {[%clk
01:23:21]} {[%emt 00:00:05]} d5 {[%clk 01:32:35]} {[%emt 00:00:04]} 9. exd5
{[%clk 01:22:46]} {[%emt 00:01:05]} Qxd5 {[%clk 01:32:58]} {[%emt 00:00:07]} 10.
Ne3 {[%clk 01:23:09]} {[%emt 00:00:07]} Qd7 {[%clk 01:32:18]} {[%emt 00:01:10]}
11. O-O {[%clk 01:19:54]} {[%emt 00:03:45]} Nf6 {[%clk 01:30:44]} {[%emt
00:02:04]} 12. c4 {[%clk 01:19:13]} {[%emt 00:01:12]} O-O {[%clk 01:30:44]}
{[%emt 00:00:30]} 13. Bb2 {[%clk 01:19:10]} {[%emt 00:00:31]} b5 {[%clk
01:28:54]} {[%emt 00:02:21]} 14. Nd2 {[%clk 01:16:03]} {[%emt 00:03:37]} a6
{[%clk 01:23:59]} {[%emt 00:05:26]} 15. Nf3 {[%clk 01:10:29]} {[%emt 00:06:02]}
Ng4 {[%clk 01:17:45]} {[%emt 00:06:45]} 16. Nxg4 {[%clk 00:57:28]} {[%emt
00:13:31]} Qxg4 {[%clk 01:16:39]} {[%emt 00:01:37]} 17. Ne5 {[%clk 00:57:50]}
{[%emt 00:00:06]} Qxd1 {[%clk 01:14:06]} {[%emt 00:03:03]} 18. Rfxd1 {[%clk
00:58:12]} {[%emt 00:00:09]} Bd6 {[%clk 01:13:44]} {[%emt 00:00:53]} 19. Rac1
{[%clk 00:52:01]} {[%emt 00:06:39]} Bxe5 {[%clk 01:11:17]} {[%emt 00:02:58]} 20.
dxe5 {[%clk 00:52:25]} {[%emt 00:00:06]} Be6 {[%clk 01:07:30]} {[%emt
00:04:16]} 21. cxb5 {[%clk 00:51:54]} {[%emt 00:01:02]} axb5 {[%clk 01:07:53]}
{[%emt 00:00:08]} 22. Rxc7 {[%clk 00:46:06]} {[%emt 00:06:17]} Rxa2 {[%clk
01:07:01]} {[%emt 00:01:22]} 23. Bc3 {[%clk 00:46:14]} {[%emt 00:00:21]} Rc2
{[%clk 01:05:14]} {[%emt 00:02:17]} 24. Ba5 {[%clk 00:46:03]} {[%emt 00:00:42]}
1/2-1/2

[Event "The Kvibergspelen 2024"]
[Site "Kviberg Park Hotel & Conference, Krutvagen 2, Gothenburg, Sweden"]
[Date "2024.09.08"]
[Round "8.16"]
[White "Eriksson, Kristian"]
[Black "Olsson, Thomas"]
[Result "1/2-1/2"]
[TimeControl "15 minutes + 5 seconds per move from move one (Round 1 - 4) / 90 minutes + 30 seconds per move from move one (Round 5 - 8)"]
[WhiteFideId "1705172"]
[BlackFideId "1702696"]
[WhiteElo "2051"]
[BlackElo "1902"]

1. e4 {[%clk 01:30:55]} {[%emt 00:00:04]} e5 {[%clk 01:29:38]} {[%emt
00:01:23]} 2. Nf3 {[%clk 01:31:03]} {[%emt 00:00:22]} Nc6 {[%clk 01:29:23]}
{[%emt 00:00:45]} 3. Bb5 {[%clk 01:30:45]} {[%emt 00:00:48]} a6 {[%clk
01:29:07]} {[%emt 00:00:47]} 4. Ba4 {[%clk 01:31:09]} {[%emt 00:00:06]} d6
{[%clk 01:27:45]} {[%emt 00:01:52]} 5. Bxc6+ {[%clk 01:30:45]} {[%emt
00:00:54]} bxc6 {[%clk 01:28:01]} {[%emt 00:00:13]} 6. d4 {[%clk 01:31:09]}
{[%emt 00:00:05]} exd4 {[%clk 01:26:30]} {[%emt 00:02:02]} 7. Nxd4 {[%clk
01:29:20]} {[%emt 00:02:19]} c5 {[%clk 01:17:55]} {[%emt 00:09:05]} 8. Nc6
{[%clk 01:27:42]} {[%emt 00:02:08]} Qd7 {[%clk 01:17:21]} {[%emt 00:01:05]} 9.
Na5 {[%clk 01:28:02]} {[%emt 00:00:09]} Ne7 {[%clk 01:04:24]} {[%emt 00:13:26]}
10. O-O {[%clk 01:22:28]} {[%emt 00:06:05]} Rb8 {[%clk 00:56:10]} {[%emt
00:08:44]} 11. Nc3 {[%clk 01:20:14]} {[%emt 00:02:44]} f6 {[%clk 00:44:38]}
{[%emt 00:12:03]} 12. b3 {[%clk 01:13:39]} {[%emt 00:07:05]} g6 {[%clk
00:42:34]} {[%emt 00:02:33]} 13. Nd5 {[%clk 01:07:34]} {[%emt 00:06:33]} Bg7
{[%clk 00:31:38]} {[%emt 00:11:28]} 14. Nxe7 {[%clk 00:58:21]} {[%emt
00:09:43]} Kxe7 {[%clk 00:31:22]} {[%emt 00:00:46]} 15. Bb2 {[%clk 00:57:00]}
{[%emt 00:01:51]} Re8 {[%clk 00:25:14]} {[%emt 00:06:37]} 16. Qd3 {[%clk
00:41:28]} {[%emt 00:16:00]} Kf8 {[%clk 00:23:03]} {[%emt 00:02:43]} 17. Nc4
{[%clk 00:38:35]} {[%emt 00:03:23]} Bb7 {[%clk 00:21:02]} {[%emt 00:02:30]} 18.
f3 {[%clk 00:38:36]} {[%emt 00:00:29]} Kg8 {[%clk 00:20:45]} {[%emt 00:00:48]}
19. Rad1 {[%clk 00:37:12]} {[%emt 00:01:54]} Qe6 {[%clk 00:19:21]} {[%emt
00:01:53]} 20. Bc1 {[%clk 00:29:40]} {[%emt 00:08:01]} 1/2-1/2

[Event "The Kvibergspelen 2024"]
[Site "Kviberg Park Hotel & Conference, Krutvagen 2, Gothenburg, Sweden"]
[Date "2024.09.08"]
[Round "8.17"]
[White "Sigeman, Johan"]
[Black "Andren, Patrik"]
[Result "1-0"]
[TimeControl "15 minutes + 5 seconds per move from move one (Round 1 - 4) / 90 minutes + 30 seconds per move from move one (Round 5 - 8)"]
[WhiteFideId "1705601"]
[BlackFideId "1767135"]
[WhiteElo "2032"]
[BlackElo "1895"]

1. d4 {[%clk 01:30:48]} {[%emt 00:00:11]} Nf6 {[%clk 01:30:51]} {[%emt
00:00:10]} 2. Nf3 {[%clk 01:31:11]} {[%emt 00:00:06]} g6 {[%clk 01:31:12]}
{[%emt 00:00:09]} 3. g3 {[%clk 01:31:33]} {[%emt 00:00:08]} Bg7 {[%clk
01:31:29]} {[%emt 00:00:13]} 4. Bg2 {[%clk 01:31:58]} {[%emt 00:00:06]} O-O
{[%clk 01:31:47]} {[%emt 00:00:12]} 5. O-O {[%clk 01:32:20]} {[%emt 00:00:07]}
d6 {[%clk 01:31:53]} {[%emt 00:00:24]} 6. c4 {[%clk 01:32:41]} {[%emt
00:00:09]} a6 {[%clk 01:31:23]} {[%emt 00:01:00]} 7. Nc3 {[%clk 01:32:59]}
{[%emt 00:00:13]} Nc6 {[%clk 01:31:36]} {[%emt 00:00:16]} 8. b3 {[%clk
01:31:24]} {[%emt 00:02:05]} Rb8 {[%clk 01:27:42]} {[%emt 00:04:24]} 9. Nd5
{[%clk 01:30:49]} {[%emt 00:01:05]} b5 {[%clk 01:20:08]} {[%emt 00:08:04]} 10.
Nxf6+ {[%clk 01:30:13]} {[%emt 00:01:06]} exf6 {[%clk 01:18:34]} {[%emt
00:02:05]} 11. cxb5 {[%clk 01:24:27]} {[%emt 00:06:14]} axb5 {[%clk 01:17:58]}
{[%emt 00:01:07]} 12. Bb2 {[%clk 01:23:39]} {[%emt 00:01:18]} b4 {[%clk
01:14:32]} {[%emt 00:03:57]} 13. d5 {[%clk 01:22:48]} {[%emt 00:01:20]} Ne5
{[%clk 01:14:24]} {[%emt 00:00:38]} 14. Nd4 {[%clk 01:22:24]} {[%emt 00:00:54]}
Bd7 {[%clk 01:10:26]} {[%emt 00:04:28]} 15. Qd2 {[%clk 01:22:03]} {[%emt
00:00:51]} Rb6 {[%clk 01:06:32]} {[%emt 00:04:25]} 16. Rfc1 {[%clk 01:19:00]}
{[%emt 00:03:31]} f5 {[%clk 01:04:16]} {[%emt 00:02:47]} 17. h3 {[%clk
01:17:32]} {[%emt 00:01:58]} g5 {[%clk 01:02:50]} {[%emt 00:01:56]} 18. Rc2
{[%clk 01:08:02]} {[%emt 00:10:01]} Bh6 {[%clk 00:58:24]} {[%emt 00:04:56]} 19.
Rac1 {[%clk 01:06:07]} {[%emt 00:02:24]} Qf6 {[%clk 00:53:08]} {[%emt
00:05:46]} 20. Rxc7 {[%clk 01:04:22]} {[%emt 00:02:15]} g4 {[%clk 00:53:28]}
{[%emt 00:00:10]} 21. e3 {[%clk 01:04:26]} {[%emt 00:00:25]} gxh3 {[%clk
00:47:39]} {[%emt 00:06:20]} 22. Bxh3 {[%clk 01:01:57]} {[%emt 00:02:59]} Qg6
{[%clk 00:43:09]} {[%emt 00:04:59]} 23. Rxd7 {[%clk 00:55:35]} {[%emt
00:06:54]} Nxd7 {[%clk 00:41:40]} {[%emt 00:01:58]} 24. Bxf5 {[%clk 00:55:57]}
{[%emt 00:00:08]} Qh5 {[%clk 00:39:07]} {[%emt 00:03:03]} 25. Bxd7 {[%clk
00:56:18]} {[%emt 00:00:09]} Ra8 {[%clk 00:39:03]} {[%emt 00:00:34]} 26. Nf5
{[%clk 00:55:24]} {[%emt 00:01:24]} 1-0

[Event "The Kvibergspelen 2024"]
[Site "Kviberg Park Hotel & Conference, Krutvagen 2, Gothenburg, Sweden"]
[Date "2024.09.08"]
[Round "8.18"]
[White "Berling, Egil"]
[Black "Ostensson, Julia"]
[Result "1/2-1/2"]
[TimeControl "15 minutes + 5 seconds per move from move one (Round 1 - 4) / 90 minutes + 30 seconds per move from move one (Round 5 - 8)"]
[WhiteFideId "1781197"]
[BlackFideId "1747703"]
[WhiteElo "1837"]
[BlackElo "2016"]

1. d4 {[%clk 01:30:57]} {[%emt 00:00:02]} Nf6 {[%clk 01:30:57]} {[%emt
00:00:04]} 2. Nc3 {[%clk 01:31:20]} {[%emt 00:00:07]} d5 {[%clk 01:31:01]}
{[%emt 00:00:25]} 3. Bf4 {[%clk 01:31:42]} {[%emt 00:00:08]} g6 {[%clk
01:31:04]} {[%emt 00:00:28]} 4. e3 {[%clk 01:31:56]} {[%emt 00:00:16]} Bg7
{[%clk 01:31:25]} {[%emt 00:00:10]} 5. h4 {[%clk 01:32:19]} {[%emt 00:00:06]}
O-O {[%clk 01:30:56]} {[%emt 00:00:59]} 6. h5 {[%clk 01:32:34]} {[%emt
00:00:15]} c5 {[%clk 01:25:31]} {[%emt 00:05:54]} 7. hxg6 {[%clk 01:32:52]}
{[%emt 00:00:12]} hxg6 {[%clk 01:17:27]} {[%emt 00:08:34]} 8. Qd2 {[%clk
01:28:35]} {[%emt 00:04:48]} Nc6 {[%clk 01:17:37]} {[%emt 00:00:21]} 9. f3
{[%clk 01:26:37]} {[%emt 00:02:27]} Re8 {[%clk 01:12:57]} {[%emt 00:05:11]} 10.
O-O-O {[%clk 01:25:22]} {[%emt 00:01:43]} e6 {[%clk 00:52:38]} {[%emt
00:20:49]} 11. g4 {[%clk 01:18:15]} {[%emt 00:07:37]} Nd7 {[%clk 00:46:24]}
{[%emt 00:06:45]} 12. Qh2 {[%clk 01:11:00]} {[%emt 00:07:45]} Nf8 {[%clk
00:41:14]} {[%emt 00:05:39]} 13. Bh6 {[%clk 01:01:13]} {[%emt 00:10:17]} Bxh6
{[%clk 00:40:25]} {[%emt 00:01:20]} 14. Qxh6 {[%clk 01:01:21]} {[%emt
00:00:22]} Qf6 {[%clk 00:40:51]} {[%emt 00:00:04]} 15. dxc5 {[%clk 00:57:33]}
{[%emt 00:04:18]} Qg7 {[%clk 00:41:03]} {[%emt 00:00:17]} 16. Qh2 {[%clk
00:54:07]} {[%emt 00:03:56]} Rd8 {[%clk 00:39:13]} {[%emt 00:02:21]} 17. Nge2
{[%clk 00:53:06]} {[%emt 00:01:31]} Nd7 {[%clk 00:35:43]} {[%emt 00:04:00]} 18.
Bg2 {[%clk 00:46:41]} {[%emt 00:06:55]} Nxc5 {[%clk 00:35:51]} {[%emt
00:00:21]} 19. f4 {[%clk 00:45:19]} {[%emt 00:01:52]} Bd7 {[%clk 00:33:16]}
{[%emt 00:03:05]} 20. f5 {[%clk 00:42:14]} {[%emt 00:03:36]} Ne5 {[%clk
00:22:39]} {[%emt 00:11:07]} 21. fxg6 {[%clk 00:37:22]} {[%emt 00:05:21]} Nxg6
{[%clk 00:20:41]} {[%emt 00:02:28]} 22. Ng3 {[%clk 00:33:58]} {[%emt 00:03:54]}
Bc6 {[%clk 00:17:50]} {[%emt 00:03:22]} 23. Rdf1 {[%clk 00:28:51]} {[%emt
00:05:37]} Nd7 {[%clk 00:15:13]} {[%emt 00:03:07]} 24. g5 {[%clk 00:23:55]}
{[%emt 00:05:26]} Kf8 {[%clk 00:13:01]} {[%emt 00:02:41]} 25. Bh3 {[%clk
00:19:01]} {[%emt 00:05:24]} Ke7 {[%clk 00:12:44]} {[%emt 00:00:47]} 26. Qf2
{[%clk 00:17:54]} {[%emt 00:01:37]} Rh8 {[%clk 00:12:22]} {[%emt 00:00:52]} 27.
Bg2 {[%clk 00:17:32]} {[%emt 00:00:52]} Rxh1 {[%clk 00:12:26]} {[%emt
00:00:27]} 28. Bxh1 {[%clk 00:17:19]} {[%emt 00:00:43]} Nb6 {[%clk 00:08:16]}
{[%emt 00:04:39]} 29. Nh5 {[%clk 00:16:23]} {[%emt 00:01:27]} Qh7 {[%clk
00:06:23]} {[%emt 00:02:21]} 30. Qf6+ {[%clk 00:16:01]} {[%emt 00:00:53]} Kd6
{[%clk 00:06:10]} {[%emt 00:00:43]} 31. Ng7 {[%clk 00:13:31]} {[%emt 00:03:00]}
Nd7 {[%clk 00:06:35]} {[%emt 00:00:05]} 32. Qxf7 {[%clk 00:13:19]} {[%emt
00:00:43]} Ndf8 {[%clk 00:04:00]} {[%emt 00:03:04]} 33. Qf6 {[%clk 00:10:51]}
{[%emt 00:02:59]} Qh3 {[%clk 00:00:52]} {[%emt 00:03:38]} 34. Kb1 {[%clk
00:09:11]} {[%emt 00:02:09]} Kc7 {[%clk 00:00:56]} {[%emt 00:00:26]} 35. Qf7+
{[%clk 00:07:10]} {[%emt 00:02:32]} Kb6 {[%clk 00:01:21]} {[%emt 00:00:05]} 36.
Qf2 {[%clk 00:06:35]} {[%emt 00:01:05]} Qh4 {[%clk 00:01:14]} {[%emt 00:00:37]}
37. Qxh4 {[%clk 00:06:22]} {[%emt 00:00:44]} Nxh4 {[%clk 00:01:40]} {[%emt
00:00:03]} 38. Nh5 {[%clk 00:06:11]} {[%emt 00:00:41]} Nd7 {[%clk 00:02:03]}
{[%emt 00:00:07]} 39. Nf4 {[%clk 00:05:45]} {[%emt 00:00:56]} Rf8 {[%clk
00:02:28]} {[%emt 00:00:04]} 40. Rg1 {[%clk 00:05:25]} {[%emt 00:00:50]} Re8
{[%clk 00:00:38]} {[%emt 00:02:21]} 41. g6 {[%clk 00:05:17]} {[%emt 00:00:38]}
Nf6 {[%clk 00:01:05]} {[%emt 00:00:02]} 42. g7 {[%clk 00:04:15]} {[%emt
00:01:32]} Nf5 {[%clk 00:01:30]} {[%emt 00:00:05]} 43. Rg6 {[%clk 00:04:07]}
{[%emt 00:00:38]} Ng8 {[%clk 00:01:29]} {[%emt 00:00:31]} 44. Rxe6 {[%clk
00:04:03]} {[%emt 00:00:34]} Rxe6 {[%clk 00:01:35]} {[%emt 00:00:24]} 45. Nxe6
{[%clk 00:04:25]} {[%emt 00:00:09]} Nxe3 {[%clk 00:01:17]} {[%emt 00:00:47]} 46.
Nd4 {[%clk 00:03:54]} {[%emt 00:01:02]} Kc5 {[%clk 00:01:14]} {[%emt 00:00:33]}
47. Nxc6 {[%clk 00:03:24]} {[%emt 00:01:00]} bxc6 {[%clk 00:01:36]} {[%emt
00:00:08]} 48. Kc1 {[%clk 00:03:32]} {[%emt 00:00:22]} Nf5 {[%clk 00:02:02]}
{[%emt 00:00:04]} 49. Kd2 {[%clk 00:03:35]} {[%emt 00:00:26]} 1/2-1/2

[Event "The Kvibergspelen 2024"]
[Site "Kviberg Park Hotel & Conference, Krutvagen 2, Gothenburg, Sweden"]
[Date "2024.09.08"]
[Round "8.19"]
[White "Lappas Lonnermark, Johannes"]
[Black "Frisk, Hans"]
[Result "1/2-1/2"]
[TimeControl "15 minutes + 5 seconds per move from move one (Round 1 - 4) / 90 minutes + 30 seconds per move from move one (Round 5 - 8)"]
[WhiteFideId "1773437"]
[BlackFideId "1708570"]
[WhiteElo "1862"]
[BlackElo "1994"]

1. e4 {[%clk 01:30:56]} {[%emt 00:00:03]} c5 {[%clk 01:30:57]} {[%emt
00:00:05]} 2. Nf3 {[%clk 01:30:31]} {[%emt 00:00:55]} Nc6 {[%clk 01:31:11]}
{[%emt 00:00:16]} 3. Bb5 {[%clk 01:30:53]} {[%emt 00:00:07]} e6 {[%clk
01:30:57]} {[%emt 00:00:44]} 4. c3 {[%clk 01:30:10]} {[%emt 00:01:13]} Nge7
{[%clk 01:23:09]} {[%emt 00:08:17]} 5. O-O {[%clk 01:29:11]} {[%emt 00:01:30]}
a6 {[%clk 01:17:17]} {[%emt 00:06:22]} 6. Ba4 {[%clk 01:29:24]} {[%emt
00:00:18]} b5 {[%clk 01:14:23]} {[%emt 00:03:23]} 7. Bc2 {[%clk 01:29:50]}
{[%emt 00:00:05]} d5 {[%clk 01:08:37]} {[%emt 00:06:15]} 8. d4 {[%clk
01:26:04]} {[%emt 00:04:16]} cxd4 {[%clk 01:06:38]} {[%emt 00:02:30]} 9. Nxd4
{[%clk 01:25:58]} {[%emt 00:00:36]} Nxd4 {[%clk 00:58:45]} {[%emt 00:08:22]} 10.
Qxd4 {[%clk 01:23:10]} {[%emt 00:03:19]} Nc6 {[%clk 00:54:38]} {[%emt
00:04:36]} 11. Qd1 {[%clk 01:22:36]} {[%emt 00:01:04]} dxe4 {[%clk 00:50:26]}
{[%emt 00:04:42]} 12. Qxd8+ {[%clk 01:20:54]} {[%emt 00:02:13]} Nxd8 {[%clk
00:50:19]} {[%emt 00:00:35]} 13. Bxe4 {[%clk 01:21:04]} {[%emt 00:00:21]} Bb7
{[%clk 00:50:33]} {[%emt 00:00:17]} 14. Bxb7 {[%clk 01:19:20]} {[%emt
00:02:13]} Nxb7 {[%clk 00:50:57]} {[%emt 00:00:06]} 15. Be3 {[%clk 01:17:31]}
{[%emt 00:02:19]} Bc5 {[%clk 00:50:42]} {[%emt 00:00:45]} 16. a4 {[%clk
01:15:31]} {[%emt 00:02:30]} Bxe3 {[%clk 00:46:28]} {[%emt 00:04:45]} 17. fxe3
{[%clk 01:15:54]} {[%emt 00:00:06]} Ke7 {[%clk 00:45:44]} {[%emt 00:01:14]} 18.
Rd1 {[%clk 01:14:42]} {[%emt 00:01:42]} Nc5 {[%clk 00:42:51]} {[%emt 00:03:23]}
19. axb5 {[%clk 01:10:28]} {[%emt 00:04:44]} axb5 {[%clk 00:43:20]} {[%emt
00:00:02]} 20. Nd2 {[%clk 01:10:35]} {[%emt 00:00:23]} Rxa1 {[%clk 00:30:16]}
{[%emt 00:13:34]} 21. Rxa1 {[%clk 01:10:33]} {[%emt 00:00:32]} Na4 {[%clk
00:30:15]} {[%emt 00:00:29]} 22. c4 {[%clk 01:07:46]} {[%emt 00:03:18]} Rd8
{[%clk 00:29:18]} {[%emt 00:01:27]} 23. Ne4 {[%clk 01:06:39]} {[%emt 00:01:37]}
Nxb2 {[%clk 00:23:24]} {[%emt 00:06:25]} 24. cxb5 {[%clk 01:06:23]} {[%emt
00:00:45]} Rd1+ {[%clk 00:21:20]} {[%emt 00:02:34]} 25. Rxd1 {[%clk 01:06:41]}
{[%emt 00:00:12]} Nxd1 {[%clk 00:21:44]} {[%emt 00:00:05]} 26. Ng5 {[%emt
00:03:10]} Nxe3 {[%emt 00:03:30]} 27. Nxf7 {[%clk 01:03:44]} {[%emt 00:00:02]}
Nc4 {[%clk 00:18:54]} {[%emt 00:01:04]} 28. Ng5 {[%emt 00:01:58]} h6 {[%clk
00:14:15]} {[%emt 00:03:37]} 29. Ne4 {[%clk 01:03:25]} {[%emt 00:00:54]} Nd6
{[%clk 00:11:15]} {[%emt 00:03:31]} 30. Nc3 {[%clk 00:58:37]} {[%emt 00:05:19]}
Nc4 {[%clk 00:10:39]} {[%emt 00:01:03]} 31. Ne4 {[%clk 00:57:05]} {[%emt
00:02:04]} Nd6 {[%clk 00:11:00]} {[%emt 00:00:09]} 32. Nc3 {[%clk 00:57:26]}
{[%emt 00:00:09]} Nc4 {[%clk 00:11:22]} {[%emt 00:00:08]} 33. Ne4 1/2-1/2

[Event "The Kvibergspelen 2024"]
[Site "Kviberg Park Hotel & Conference, Krutvagen 2, Gothenburg, Sweden"]
[Date "2024.09.08"]
[Round "8.20"]
[White "Thyberg, Andre"]
[Black "Roosvald, Filip"]
[Result "0-1"]
[TimeControl "15 minutes + 5 seconds per move from move one (Round 1 - 4) / 90 minutes + 30 seconds per move from move one (Round 5 - 8)"]
[WhiteFideId "1764764"]
[BlackFideId "1767976"]
[WhiteElo "1994"]
[BlackElo "1824"]

1. e4 {[%clk 01:30:57]} {[%emt 00:00:03]} c6 {[%clk 01:29:03]} {[%emt
00:01:58]} 2. d4 {[%clk 01:31:15]} {[%emt 00:00:11]} d5 {[%clk 01:29:29]}
{[%emt 00:00:05]} 3. exd5 {[%clk 01:31:37]} {[%emt 00:00:08]} cxd5 {[%clk
01:29:53]} {[%emt 00:00:05]} 4. c4 {[%clk 01:32:00]} {[%emt 00:00:06]} Nf6
{[%clk 01:30:18]} {[%emt 00:00:06]} 5. Nc3 {[%clk 01:32:22]} {[%emt 00:00:08]}
g6 {[%clk 01:30:43]} {[%emt 00:00:05]} 6. cxd5 {[%clk 01:31:29]} {[%emt
00:01:23]} Nxd5 {[%clk 01:31:00]} {[%emt 00:00:14]} 7. Bc4 {[%clk 01:31:54]}
{[%emt 00:00:04]} Nxc3 {[%clk 01:31:22]} {[%emt 00:00:08]} 8. bxc3 {[%clk
01:32:11]} {[%emt 00:00:14]} Bg7 {[%clk 01:31:46]} {[%emt 00:00:05]} 9. Nf3
{[%clk 01:31:23]} {[%emt 00:01:18]} Qc7 {[%clk 01:32:06]} {[%emt 00:00:10]} 10.
Qb3 {[%clk 01:31:15]} {[%emt 00:00:38]} O-O {[%clk 01:32:27]} {[%emt 00:00:08]}
11. O-O {[%clk 01:24:47]} {[%emt 00:06:59]} Nc6 {[%clk 01:31:34]} {[%emt
00:01:23]} 12. Bd5 {[%clk 01:21:37]} {[%emt 00:03:40]} b6 {[%clk 01:25:50]}
{[%emt 00:06:14]} 13. Re1 {[%clk 01:20:22]} {[%emt 00:01:44]} Bb7 {[%clk
01:25:27]} {[%emt 00:00:54]} 14. Qc4 {[%clk 01:07:19]} {[%emt 00:13:33]} Rac8
{[%clk 01:23:43]} {[%emt 00:02:14]} 15. Ba3 {[%clk 01:05:00]} {[%emt 00:02:49]}
Nxd4 {[%clk 01:16:58]} {[%emt 00:07:15]} 16. Qxc7 {[%clk 01:02:39]} {[%emt
00:02:50]} Nxf3+ {[%clk 01:17:22]} {[%emt 00:00:07]} 17. Bxf3 {[%clk 01:02:46]}
{[%emt 00:00:24]} Rxc7 {[%clk 01:17:38]} {[%emt 00:00:14]} 18. Bxb7 {[%clk
00:58:14]} {[%emt 00:05:01]} Rxb7 {[%clk 01:18:01]} {[%emt 00:00:07]} 19. Bxe7
{[%clk 00:56:12]} {[%emt 00:02:32]} Bxc3 {[%clk 01:17:31]} {[%emt 00:01:00]} 20.
Bxf8 {[%clk 00:56:31]} {[%emt 00:00:11]} Bxe1 {[%clk 01:17:49]} {[%emt
00:00:12]} 21. Bh6 {[%clk 00:56:26]} {[%emt 00:00:34]} Bb4 {[%clk 01:17:19]}
{[%emt 00:01:01]} 22. Rd1 {[%clk 00:55:35]} {[%emt 00:01:21]} f6 {[%clk
01:13:40]} {[%emt 00:04:09]} 23. h4 {[%clk 00:49:00]} {[%emt 00:07:05]} Kf7
{[%clk 01:12:31]} {[%emt 00:01:39]} 24. g4 {[%clk 00:49:10]} {[%emt 00:00:19]}
Ke6 {[%clk 01:11:39]} {[%emt 00:01:23]} 25. Rd8 {[%clk 00:47:36]} {[%emt
00:02:04]} Rd7 {[%clk 01:09:43]} {[%emt 00:02:26]} 26. Ra8 {[%clk 00:47:21]}
{[%emt 00:00:45]} Kd5 {[%emt 00:01:02]} 27. Bf8 {[%clk 00:47:12]} {[%emt
00:00:26]} Kc4 {[%clk 01:08:47]} {[%emt 00:01:07]} 28. Bxb4 {[%clk 00:46:43]}
{[%emt 00:00:59]} Kxb4 {[%clk 01:09:12]} {[%emt 00:00:05]} 29. Rf8 {[%clk
00:47:01]} {[%emt 00:00:11]} Ka3 {[%clk 01:09:20]} {[%emt 00:00:23]} 30. Rxf6
{[%clk 00:47:22]} {[%emt 00:00:09]} Kxa2 {[%clk 01:09:43]} {[%emt 00:00:07]} 31.
h5 {[%clk 00:44:38]} gxh5 {[%clk 01:09:43]} 32. gxh5 {[%clk 00:44:38]} b5
{[%clk 01:10:22]} {[%emt 00:03:40]} 33. Rf5 {[%clk 00:43:45]} {[%emt 00:01:48]}
b4 {[%clk 01:10:36]} {[%emt 00:00:16]} 0-1